[Event "Carolinas Classic 2022"]
[Site "Charlotte"]
[Date "2022.06.12"]
[Round "4.5"]
[White "Brady, Tyson"]
[Black "Laureano, Dereck"]
[Result "1-0"]
[ECO "A08"]
[WhiteElo "2064"]
[BlackElo "1809"]
[Annotator "TA"]
[PlyCount "73"]
[EventDate "2022.06.10"]
[EventType "swiss"]
[EventCountry "USA"]
[SourceTitle "playchess.com"]
[Source "ChessBase"]
[SourceQuality "1"]
[TimeControl "5400+30"]

{[%evp 17,73,-25,-15,-41,8,7,7,-1,0,8,29,37,64,57,85,79,80,67,83,79,62,-35,88,69,75,89,84,5,0,0,0,0,72,-87,-95,-191,-137,-169,-154,-145,-112,-106,-47,-120,-52,-46,-48,-54,58,41,22,-33,-57,-62,-55,-299,-297,-279]} 1. Nf3 {[%emt 0:00:21]} d5 {[%emt 0:08:39]} 2. g3 {[%emt 0:00:05]} Nf6 {[%emt 0:03:37]} 3. Bg2 {[%emt 0:00:04]} c5 {[%emt 0:01:03]} 4. O-O {[%emt 0:00:08]} g6 {[%emt 0:00:27]} 5. d3 {[%emt 0:00:55]} Bg7 {[%emt 0:00:37]} 6. Nbd2 {[%emt 0:00:24]} O-O {[%emt 0:03:34]} 7. e4 {[%emt 0:00:38]} e6 {[%emt 0:02:13]} 8. Re1 {[%emt 0:00:11]} Nc6 {[%emt 0:01:03]} 9. Qe2 {[%emt 0:03:08]} b6 {[%emt 0:01:13]} 10. Nf1 {[%emt 0:00:43][%cal Bd2f1,Bf1h2,Bh2g4][%mdl 32] A08: King's Indian Attack.} Bb7 {[%emt 0:02:44]} (10... e5 $15) 11. e5 $11 {[%emt 0:02:29]} Nd7 {[%emt 0:11:24] aiming for ...Ndxe5.} 12. Bf4 {[%emt 0:00:04] The position is equal.} (12. Bg5 $5 {[%cal Rg5d8]} Qc8 13. Bf4 $11) 12... b5 {[%emt 0:01:01]} 13. h4 {[%emt 0:00:10]} Qc7 {[%emt 0:05:04]} 14. N1h2 {[%emt 0:00:16]} Rac8 {[%emt 0:06:46]} 15. Ng4 {[%emt 0:00:07][%cal Oh4h5] [#]} Nd4 $146 {[%emt 0:02:40]} ({Predecessor:} 15... h5 16. Nf6+ Bxf6 17. exf6 Qd8 18. Ne5 Ncxe5 19. Bxe5 Nxf6 20. Qd2 Kh7 21. Bf3 Bc6 {1-0 (55) Birnboim,N-Chemin,J Graz 1972}) 16. Nxd4 {[%emt 0:00:16]} cxd4 {[%emt 0:00:04]} 17. Rac1 {[%emt 0:00:03][%cal Oh4h5] White is more active.} Qa5 {[%emt 0:00:56]} 18. h5 {[%emt 0:24:34]} Rc6 {[%emt 0:04:38]} (18... gxh5 $2 19. Nh6+ Bxh6 20. Bxh6 $18) 19. c4 {[%emt 0:12:16]} (19. c3 $14) 19... dxc3 {[%emt 0:10:01]} (19... Qxa2 $2 20. Ra1 Qb3 21. h6 $18) (19... bxc4 $15 {stays ahead.} 20. dxc4 Rxc4) 20. bxc3 $16 {[%emt 0:00:04]} Rfc8 {[%emt 0:00:57]} 21. Bd2 {[%emt 0:03:26]} Qa3 {[%emt 0:05:30]} (21... Qxa2 $2 22. Ra1 Qc2 23. Rec1 $18) 22. d4 {[%emt 0:04:30]} (22. Qe3 $16) 22... b4 $1 $11 {[%emt 0:04:42]} 23. Qf3 $1 {[%emt 0:03:01][%cal Oc3b4]} bxc3 {[%emt 0:05:12]} 24. Bh6 {[%emt 0:00:04]} Qf8 {[%emt 0:01:24]} (24... gxh5 $11 {remains equal.} 25. Bxg7 Kxg7) 25. Be3 $2 {[%emt 0:03:08]} (25. Bxg7 $16 {is necessary to keep the advantage.} Qxg7 26. h6) 25... Ba6 $17 {[%emt 0:03:08]} ({Inferior is} 25... gxh5 26. Nf6+ Bxf6 27. exf6 $17) 26. Bf1 {[%emt 0:01:20] [#]} (26. Nf6+ $17 {keeps fighting.} Bxf6 27. exf6) 26... Bxf1 $1 $19 {[%emt 0:03:31]} 27. Kxf1 {[%emt 0:01:25]} c2 {[%emt 0:02:22]} 28. Kg2 {[%emt 0:00:03]} Rc3 {[%emt 0:00:26]} 29. Rh1 {[%emt 0:00:16]} R8c4 {[%emt 0:02:27]} (29... f5 $17 30. exf6 Nxf6 31. hxg6 hxg6 32. Nh6+ Bxh6 33. Rxh6 Qxh6 34. Bxh6 Rxf3 35. Kxf3 Rc4) 30. Qf4 {[%emt 0:02:00]} (30. Qe2 $1 $15) 30... Rd3 {[%emt 0:07:28]} (30... Nc5 $17 {And now ...Nd3 would win.} 31. hxg6 fxg6 32. Qxf8+ Kxf8) 31. Nf6+ $15 {[%emt 0:04:14]} Bxf6 {[%emt 0:00:35]} 32. exf6 {[%emt 0:00:03]} g5 {[%emt 0:00:32]} ({Don't take} 32... e5 33. Qh4 Rdxd4 34. Bxd4 Rxd4 35. Qh3 Nxf6 36. Rxc2 $14) ({Black should try} 32... Rcc3 $1 $15) 33. Qxg5+ $14 {[%emt 0:00:20]} Kh8 {[%emt 0:00:12]} 34. h6 {[%emt 0:01:21]} ({White should play} 34. Rh4 $11) 34... Qg8 $15 {[%emt 0:00:26] ...Qxg5 is the strong threat.} 35. Qg7+ {[%emt 0:00:05]} Qxg7 {[%emt 0:00:12]} 36. hxg7+ {[%emt 0:00:04] [#]} ({White has to play} 36. fxg7+ $15 Kg8 37. a3) 36... Kg8 $19 {[%emt 0:00:10]} 37. Bg5 {[%emt 0:00:01][%mdl 32768] Weighted Error Value: White=0.43/Black=0.28 (precise) . Loss on time!?} 1-0

[Event "Carolinas Classic 2022"]
[Site "Charlotte"]
[Date "2022.06.12"]
[Round "5.1"]
[White "Naroditsky, Daniel"]
[Black "Ippolito, Dean"]
[Result "1-0"]
[ECO "C43"]
[WhiteElo "2616"]
[BlackElo "2375"]
[Annotator "TA"]
[PlyCount "39"]
[EventDate "2022.06.10"]
[EventType "swiss"]
[EventCountry "USA"]
[SourceTitle "playchess.com"]
[Source "ChessBase"]
[SourceQuality "1"]
[TimeControl "5400+30"]

{[%evp 19,39,68,70,75,54,68,70,58,104,125,304,285,348,329,537,566,521,521,689,672,2735,2372]} 1. e4 {[%emt 0:00:06]} e5 {[%emt 0:00:35]} 2. Nf3 {[%emt 0:00:08]} Nf6 {[%emt 0:00:15]} 3. d4 {[%emt 0:00:34]} Nxe4 {[%emt 0:00:07]} 4. Bd3 {[%emt 0:00:09]} d5 {[%emt 0:02:13]} 5. Nxe5 {[%emt 0:00:11]} Nd7 {[%emt 0:00:07]} 6. Nxd7 {[%emt 0:01:28]} Bxd7 {[%emt 0:00:05]} 7. O-O {[%emt 0:00:46]} Qh4 {[%emt 0:00:09]} 8. c4 {[%emt 0:01:24]} O-O-O {[%emt 0:00:06]} 9. c5 {[%emt 0:01:04]} g6 {[%emt 0:00:05]} 10. Nc3 {[%emt 0:00:14]} Bg7 {[%emt 0:01:43]} 11. Bxe4 {[%emt 0:01:02] C43: Petroff Defence: 3 d4.} dxe4 {[%emt 0:00:04]} 12. Be3 {[%emt 0:00:08]} f5 {[%emt 0:08:04] [#] And now ...f4 would win.} 13. Qd2 {[%emt 0:01:05] White is slightly better.} h6 {[%emt 0:00:44] Inhibits Bg5.} (13... Qf6 $14) 14. a4 {[%emt 0:01:02] [#]} (14. Nd5 {is interesting.} Bb5 15. g3 Qg4 16. Ne7+) 14... Qf6 $146 {[%emt 0:11:57]} (14... c6 $16) ({Predecessor:} 14... c6 15. Rfc1 a6 16. Nb5 cxb5 17. c6 Bxc6 18. axb5 axb5 19. g3 Qe7 20. d5 Be5 21. Bb6 Rd6 22. Rxc6+ bxc6 23. Ra8+ {1-0 (23) Offenborn,H (2098)-Bachmann,B (2030) GER email 2015}) 15. Nb5 $18 {[%emt 0:21:54] Strongly threatening Qa5.} Qa6 {[%emt 0:01:50] Inhibits Qa5.} 16. d5 {[%emt 0:07:30][%cal Bd4d5,Bd5d6][%mdl 32]} Bxb5 $2 {[%emt 0:10:59]} (16... Be5 {was worth a try.} 17. Qb4 c6) 17. axb5 {[%emt 0:00:32] White is clearly winning.} Qxb5 {[%emt 0:00:03]} 18. Rxa7 {[%emt 0:00:44] [#] Hoping for d6.} g5 {[%emt 0:05:42]} 19. d6 {[%emt 0:03:39]} Kd7 {[%emt 0:23:24]} 20. Qd5 {[%emt 0:00:45][%csl LRb7,LRf5] Black got outplayed after the opening.  Weighted Error Value: White=0.00 (flawless) /Black=0.96} 1-0

[Event "Carolinas Classic 2022"]
[Site "Charlotte"]
[Date "2022.06.12"]
[Round "5.2"]
[White "Shabalov, Alexander"]
[Black "Brady, Tyson"]
[Result "1-0"]
[ECO "B31"]
[WhiteElo "2504"]
[BlackElo "2064"]
[Annotator "TA"]
[PlyCount "69"]
[EventDate "2022.06.10"]
[EventType "swiss"]
[EventCountry "USA"]
[SourceTitle "playchess.com"]
[Source "ChessBase"]
[SourceQuality "1"]
[TimeControl "5400+30"]

{[%evp 9,69,15,45,-1,17,30,41,41,29,21,27,15,28,14,26,20,15,15,14,16,8,7,28,17,15,12,6,0,0,0,0,-26,-29,-33,-16,-21,8,0,53,47,34,50,46,51,54,50,52,61,45,19,148,117,117,104,91,125,205,203,187,179,267,227]} 1. e4 {[%emt 0:00:03]} c5 {[%emt 0:00:02]} 2. Na3 {[%emt 0:00:08]} g6 {[%emt 0:00:04]} 3. h4 {[%emt 0:00:36]} h5 {[%emt 0:00:52]} 4. c3 {[%emt 0:02:07] [#]} d5 $146 {[%emt 0:01:19]} ({Predecessor:} 4... Bg7 5. Nf3 Nc6 6. d4 d5 7. exd5 Qxd5 8. Nb5 Kf8 9. Nc7 Qe4+ 10. Be3 cxd4 11. cxd4 {1-0 (55) Ozates,T (2217)-Yuan,Q (2373) Chess.com INT 2021}) 5. exd5 {[%emt 0:00:48]} Qxd5 {[%emt 0:00:06]} 6. d4 {[%emt 0:00:51] B31: Sicilian: 2...Nc6 3 Bb5 g6.} (6. Nb5 $14 {was preferrable.} Na6 7. Nf3) 6... cxd4 {[%emt 0:01:43]} ({Much less strong is} 6... Nc6 7. Nb5 Kd8 8. Bf4 cxd4 9. Nc7 $16 (9. Nxd4 Nxd4 10. Qxd4 Qxd4 $11)) 7. Nf3 {[%emt 0:04:29]} Nh6 {[%emt 0:04:52]} 8. Nb5 {[%emt 0:02:42] [#] Threatens to win with Nc7+. White is slightly better.} Na6 {[%emt 0:00:14] Inhibits Nc7+.} 9. Qxd4 {[%emt 0:06:44] Active counter play!} (9. Nbxd4 {looks sharper.} Ng4 10. Bb5+ Bd7 11. Qe2) 9... Qxd4 {[%emt 0:00:09]} 10. Nbxd4 {[%emt 0:00:11]} Ng4 {[%emt 0:05:59]} 11. Bb5+ {[%emt 0:05:26]} (11. Ng5 $5 {[%cal Rf1b5]}) 11... Bd7 {[%emt 0:00:31]} 12. Bxd7+ {[%emt 0:00:13]} Kxd7 {[%emt 0:00:03]} 13. Ke2 {[%emt 0:00:08]} e5 {[%emt 0:01:28]} 14. Nb3 {[%emt 0:04:13]} f6 {[%emt 0:04:32] Prevents Ng5.} 15. Nfd2 {[%emt 0:09:08]} Ke6 {[%emt 0:01:08]} 16. Ne4 {[%emt 0:00:35]} Be7 {[%emt 0:04:38]} 17. Rd1 {[%emt 0:02:20]} Nh6 {[%emt 0:04:00][%cal Bg4h6,Bh6f5,Bf5h4][%mdl 32]} 18. Na5 {[%emt 0:08:18]} Nf5 {[%emt 0:11:04]} 19. Nxb7 {[%emt 0:03:26]} Nxh4 {[%emt 0:00:46]} 20. g3 {[%emt 0:00:58]} Nf5 {[%emt 0:00:03]} 21. b4 {[%emt 0:00:07]} Rab8 {[%emt 0:05:00]} 22. Na5 {[%emt 0:00:16]} Rhc8 {[%emt 0:00:23] Inhibits Nc6.} (22... Rbc8 $5 {[%cal Rh5h4]}) 23. a3 {[%emt 0:03:19][%cal Ba2a3,Ba3a4][%mdl 32]} Nc7 {[%emt 0:14:30]} (23... g5 $11) 24. Nc6 $14 {[%emt 0:03:21]} Rb6 {[%emt 0:00:29]} 25. Nxe7 {[%emt 0:01:36]} ({Not} 25. Nxa7 $2 Ra8 26. Bb2 Ra6 $19) 25... Kxe7 {[%emt 0:00:03]} 26. a4 $1 {[%emt 0:01:57] Prevents Nb5. Black must now prevent b5.} Nd6 {[%emt 0:00:42]} 27. Nxd6 {[%emt 0:11:38]} Rxd6 {[%emt 0:00:11]} 28. Rxd6 {[%emt 0:00:05]} Kxd6 {[%emt 0:00:08][%mdl 4096] Endgame KRB-KRN} 29. Be3 {[%emt 0:00:16]} Nd5 {[%emt 0:01:15]} (29... a5 $1 $11 {remains equal.}) 30. Bc5+ {[%emt 0:00:43]} Kc6 {[%emt 0:02:44]} 31. Bxa7 {[%emt 0:07:23] And now Kd3 would win.} Nxc3+ {[%emt 0:00:24]} 32. Kd3 {[%emt 0:00:14]} Kb7 {[%emt 0:03:52]} (32... Nd5 $16 {is a better defense.}) 33. Bc5 $18 {[%emt 0:00:23]} Nd5 {[%emt 0:00:04]} 34. Kc4 {[%emt 0:00:41]} Nc7 {[%emt 0:00:04] [#]} (34... Nb6+ $142 35. Kb3 Nd7) 35. Rd1 $1 {[%emt 0:01:28] Weighted Error Value: White=0.05 (flawless) /Black=0.21 (precise)} 1-0

[Event "Carolinas Classic 2022"]
[Site "Charlotte"]
[Date "2022.06.12"]
[Round "5.3"]
[White "Tay, Brian"]
[Black "Brodsky, David"]
[Result "0-1"]
[ECO "B92"]
[WhiteElo "1863"]
[BlackElo "2484"]
[Annotator "TA"]
[PlyCount "120"]
[EventDate "2022.06.10"]
[EventType "swiss"]
[EventCountry "USA"]
[SourceTitle "playchess.com"]
[Source "ChessBase"]
[SourceQuality "1"]
[TimeControl "5400+30"]

{[%evp 16,120,8,0,-7,-11,0,-32,-34,-22,-27,-15,-8,-29,-29,-19,-24,-38,-40,-72,-12,-52,-40,-19,-24,-21,0,0,0,7,15,18,21,-189,-217,-189,-192,-246,-241,-300,-259,-258,-246,-470,-496,-496,-483,-483,29989,29971,29975,-29943,-459,-445,-398,-457,-494,-487,-421,-533,-474,-496,-546,-530,-516,-966,-694,-1294,-1247,-1018,-844,-29946,-29947,-29947,-29942,-29946,-5651,-29955,-29953,-29948,-12595,-29947,-29953,-29959,-29956,-5747,-5533,-29960,-29967,-29955,-29968,-29959,-29968,-29967,-29966,-29968,-29973,-29955,-4627,-29982,-29981,-29978,-29979,-29987,-29988,-29988,-29989]} 1. e4 {[%emt 0:04:37]} c5 {[%emt 0:00:05]} 2. Nf3 {[%emt 0:00:06]} d6 {[%emt 0:00:04]} 3. d4 {[%emt 0:00:03]} cxd4 {[%emt 0:00:03]} 4. Nxd4 {[%emt 0:00:03]} Nf6 {[%emt 0:00:06]} 5. Nc3 {[%emt 0:00:02]} a6 {[%emt 0:00:05]} 6. Be2 {[%emt 0:00:04]} e5 {[%emt 0:00:04]} 7. Nb3 {[%emt 0:00:03]} Be7 {[%emt 0:00:04]} 8. O-O {[%emt 0:00:06]} O-O {[%emt 0:00:03]} 9. Kh1 {[%emt 0:00:22]} Re8 {[%emt 0:00:07] B92: Sicilian Najdorf: 6 Be2.} 10. f4 {[%emt 0:00:33]} Nc6 {[%emt 0:00:39]} 11. f5 {[%emt 0:02:55]} b5 $1 {[%emt 0:00:30] Black is slightly better.} 12. a3 {[%emt 0:00:20]} Bb7 {[%emt 0:01:52]} 13. Bf3 {[%emt 0:01:30] [#]} h6 $146 {[%emt 0:06:45]} ({Predecessor:} 13... Rc8 14. Be3 Nb8 15. Qd2 Nbd7 16. Rfe1 Nb6 17. Na5 Ba8 18. Rad1 Qc7 19. Bg1 Rcd8 {0-1 (36) Beckett,P (1971)-Denham,C ICCF email 2015}) 14. Be3 {[%emt 0:02:29]} Na5 {[%emt 0:05:29]} 15. Nxa5 {[%emt 0:05:08]} Qxa5 {[%emt 0:00:09]} 16. Qd2 {[%emt 0:11:00]} Rac8 {[%emt 0:01:46]} 17. Rad1 {[%emt 0:01:54] [#]} Qc7 {[%emt 0:02:43]} (17... Rxc3 $1 $17 18. Qxc3 (18. bxc3 Rc8) 18... Qxc3 19. bxc3 Rc8) 18. Rf2 {[%emt 0:13:24]} Bc6 {[%emt 0:07:08]} 19. g4 {[%emt 0:16:00]} Qb7 {[%emt 0:10:04][%cal Rf6e4]} 20. Qd3 {[%emt 0:08:48]} b4 {[%emt 0:10:40]} (20... a5 $5 {[%cal Rb5b4]}) 21. axb4 {[%emt 0:00:49]} Qxb4 {[%emt 0:00:05]} 22. g5 {[%emt 0:03:39]} hxg5 {[%emt 0:00:16]} 23. Bxg5 {[%emt 0:00:05]} Qxb2 {[%emt 0:22:30]} 24. Rb1 $2 {[%emt 0:09:56] [#]} (24. Rg2 $11 {and White stays safe.} Ba8 25. Bd2 (25. Bxf6 Bxf6 26. Qxd6 Rc6 $17)) 24... Nxe4 $1 $19 {[%emt 0:05:12][%mdl 512]} 25. Bxe4 {[%emt 0:00:21]} Qxc3 {[%emt 0:01:32]} 26. Bxe7 {[%emt 0:05:30] [#]} (26. f6 {keeps fighting.} Bd8 27. Bg2) 26... Rxe7 $1 {[%emt 0:02:14][%cal Be8e7,Be7c7,Bc7c1][%mdl 32]} 27. f6 {[%emt 0:01:08]} (27. Rg2 Qxd3) 27... Qxd3 {[%emt 0:03:20]} 28. cxd3 {[%emt 0:00:42]} Rec7 {[%emt 0:00:25]} 29. fxg7 $2 {[%emt 0:02:13]} (29. Kg2) 29... Bxe4+ {[%emt 0:00:46]} 30. dxe4 {[%emt 0:00:16]} Rc1+ {[%emt 0:00:07]} 31. Rxc1 {[%emt 0:00:02][%mdl 4096] Endgame} Rc5 {[%emt 0:21:07][%mdl 8192]} (31... Rxc1+ $19 32. Kg2 a5) 32. Rcc2 Rxc2 {[%emt 0:00:00] KR-KR} 33. Kg1 $4 {[%emt 0:12:52][%mdl 8192]} (33. Rxc2 {is the narrow road to win.} Kxg7 34. Ra2 Kh6 35. Rxa6 Kg7 36. Rxd6 Kh7 37. h4 Kg8 38. Kg2) 33... Rc1+ (33... Rxf2 $142 34. Kxf2 Kxg7 35. h4 a5 36. Ke3 Kg6 37. Kd3 f5 38. exf5+ Kxf5 39. h5 a4 40. Kc2 a3 41. Kc1 e4 42. h6 a2 43. Kb2 Kg6 44. Ka1 e3 45. h7 Kxh7 46. Kxa2 e2 47. Kb3 e1=Q 48. Kc4 Qe4+ 49. Kb3 d5 50. Kc3 Qc4+ 51. Kd2 d4 52. Ke1 Qa2 53. Kf1 Qh2 54. Ke1 Qg2 55. Kd1 d3 56. Ke1 Qe2#) 34. Kg2 {[%emt 0:00:00]} Kxg7 {[%emt 0:00:00]} 35. Ra2 {[%emt 0:00:00]} Rc6 {[%emt 0:00:00]} 36. Kf3 {[%emt 0:00:00]} Kf6 {[%emt 0:00:00]} 37. Ra5 {[%emt 0:00:00]} Ke6 {[%emt 0:00:00]} 38. h4 {[%emt 0:00:00]} f5 {[%emt 0:00:00]} 39. exf5+ {[%emt 0:00:00]} Kxf5 {[%emt 0:00:00]} 40. h5 {[%emt 0:00:00]} (40. Rd5 $142 Rb6 41. Kg3) 40... Kg5 {[%emt 0:00:00]} 41. Ke4 {[%emt 0:00:00]} Rc4+ {[%emt 0:00:00]} 42. Ke3 {[%emt 0:00:00]} Kxh5 {[%emt 0:00:00]} 43. Rxa6 {[%emt 0:00:00]} Rd4 {[%emt 0:00:00]} 44. Ra8 {[%emt 0:00:00]} Kg5 {[%emt 0:00:00]} 45. Rf8 {[%emt 0:00:00]} d5 {[%emt 0:00:00]} 46. Rg8+ {[%emt 0:00:00]} Kf6 {[%emt 0:00:00]} 47. Rf8+ {[%emt 0:00:00]} Ke7 {[%emt 0:00:00]} 48. Rf5 {[%emt 0:00:00]} Ke6 {[%emt 0:00:00]} 49. Rf8 {[%emt 0:00:00]} Ra4 {[%emt 0:00:00]} 50. Re8+ {[%emt 0:00:00]} Kf6 {[%emt 0:00:00] ( -> ...Ra3+)} 51. Rf8+ {[%emt 0:00:00]} Ke7 {[%emt 0:00:00]} 52. Rh8 {[%emt 0:00:00]} Ra3+ {[%emt 0:00:00]} 53. Ke2 {[%emt 0:00:00]} Kd6 {[%emt 0:00:00]} 54. Rd8+ {[%emt 0:00:00]} Kc5 {[%emt 0:00:00]} 55. Rc8+ {[%emt 0:00:00]} Kd4 {[%emt 0:00:00]} 56. Rc2 {[%emt 0:00:00]} e4 {[%emt 0:00:00]} (56... Ke4 $142 57. Rd2 d4 58. Rb2 Ra1 59. Kf2 Kf4 60. Rd2 Ra3 61. Ke1 d3 62. Rf2+ Ke3 63. Re2+ Kd4 64. Rb2 e4 65. Kf2 e3+ 66. Kf3 Ra1 67. Kg3 e2 68. Rb4+ Ke3 69. Kg4 e1=Q 70. Rb8 Qf2 71. Re8+ Kd2 72. Re2+ dxe2 73. Kh3 Rh1+ 74. Kg4 e1=Q 75. Kg5 Qeg1#) 57. Kd2 {[%emt 0:00:00]} Rh3 {[%emt 0:00:00] Black mates.} 58. Rc8 {[%emt 0:00:00]} Rh2+ {[%emt 0:00:00]} 59. Kd1 {[%emt 0:00:00]} Kd3 {[%emt 0:00:00][%cal Rh2h1]} 60. Ke1 {[%emt 0:00:00]} e3 {[%emt 0:00:00] What a bad dream for White.  Weighted Error Value: White=0.92/Black=0.41} 0-1